bitfinex/quotes_BTCUSD_20221001
["timestamp","ask_amount","ask_price","bid_price","bid_amount"]
[1664603455501,0.05663609,19316.0,19315.0,8.34210505]
[1664603456230,0.05663609,19316.0,19315.0,8.26310505]
[1664603456919,0.05663609,19316.0,19315.0,8.34210505]
[1664603457795,0.05663609,19316.0,19315.0,8.72577866]
[1664603458034,1.3464,19322.0,19320.0,0.05]
[1664603458271,1.35550181,19327.0,19321.0,2.97509477]
[1664603458499,1.108,19327.0,19322.0,0.71657077]
[1664603458727,0.358524,19326.0,19323.0,1.20483933]
[1664603458971,0.358524,19325.0,19324.0,0.20483933]
[1664603459206,0.358524,19325.0,19323.0,0.51173144]
[1664603459482,0.358524,19325.0,19324.0,2.0]
[1664603459701,0.64557704,19326.0,19323.0,0.51173144]
[1664603459933,0.358524,19325.0,19324.0,2.0]
[1664603460167,0.70701365,19327.0,19323.0,0.51173144]
[1664603460391,0.84304728,19326.0,19324.0,2.0]
[1664603460617,0.84304728,19326.0,19323.0,0.71657077]
[1664603460618,0.358524,19325.0,19323.0,0.71657077]
[1664603460841,0.358524,19325.0,19324.0,2.0]
[1664603461063,0.358524,19325.0,19324.0,0.02]
[1664603461288,0.358524,19325.0,19324.0,2.88188077]
[1664603461557,0.069,19326.0,19324.0,2.67704144]
[1664603461808,0.069,19326.0,19325.0,0.51173144]
[1664603462251,0.358524,19326.0,19325.0,2.51173144]
[1664603462474,0.6634676,19328.0,19325.0,2.51173144]
[1664603462696,0.358524,19327.0,19325.0,0.51173144]
[1664603462921,0.42487076,19327.0,19325.0,0.51173144]
[1664603463220,0.358524,19326.0,19325.0,0.58673144]
[1664603463447,0.3943764,19326.0,19325.0,0.58673144]
[1664603464111,0.9943764,19326.0,19325.0,0.58673144]
[1664603464327,0.3943764,19326.0,19325.0,0.51173144]
[1664603464995,0.3943764,19326.0,19325.0,0.52073144]
[1664603466351,0.3943764,19326.0,19320.0,0.0858]
[1664603466352,0.9943764,19326.0,19320.0,0.0858]
[1664603466570,0.358524,19325.0,19321.0,3.41173144]
[1664603466789,0.0358524,19326.0,19322.0,0.51173144]
[1664603467106,0.0358524,19326.0,19322.0,0.71657077]
[1664603467145,0.0358524,19326.0,19323.0,2.0]
[1664603467360,0.358524,19325.0,19324.0,2.50673144]
[1664603467603,0.3943764,19325.0,19324.0,2.50673144]
[1664603467781,0.3893764,19325.0,19324.0,2.50673144]
[1664603467988,0.333524,19325.0,19324.0,2.0]
[1664603468199,0.333524,19325.0,19321.0,0.0857]
[1664603468412,0.333524,19325.0,19322.0,2.51173144]
[1664603468413,0.958524,19324.0,19322.0,2.51173144]
[1664603468621,0.35854,19323.0,19322.0,2.51173144]
[1664603469011,0.35854,19323.0,19322.0,2.58673144]
[1664603469269,0.129379,19323.0,19322.0,2.58673144]
[1664603469942,1.22908296,19323.0,19322.0,0.075]
[1664603470158,1.4880548,19323.0,19322.0,0.075]
[1664603470380,0.35854,19322.0,19319.0,1.63351102]
[1664603470589,0.35854,19321.0,19320.0,0.51173144]
[1664603470853,0.4685022,19321.0,19320.0,0.51173144]
[1664603471072,0.517452,19322.0,19320.0,0.51173144]
[1664603471530,0.646737,19322.0,19320.0,0.51173144]
[1664603472076,0.04327465,19321.0,19320.0,0.51173144]
[1664603472302,0.17266665,19321.0,19320.0,0.51173144]
[1664603473042,0.17266665,19321.0,19320.0,0.076]
[1664603473233,0.55693357,19321.0,19320.0,0.076]
[1664603474230,0.42754157,19321.0,19319.0,0.75764246]
[1664603474447,0.258598,19321.0,19320.0,2.0]
[1664603474735,0.258783,19322.0,19319.0,0.75764246]
[1664603474973,0.35854,19322.0,19320.0,2.076]
[1664603475191,0.388172,19322.0,19320.0,0.076]
[1664603475413,0.44063185,19321.0,19320.0,0.076]
[1664603475645,0.3973572,19321.0,19320.0,0.076]
[1664603476295,0.3973572,19321.0,19319.0,0.75764246]
[1664603476537,0.0388172,19321.0,19319.0,0.75764246]
[1664603476746,0.04327465,19320.0,19319.0,0.75764246]
[1664603476967,0.04327465,19320.0,19319.0,0.83464246]
[1664603477197,0.2974152,19321.0,19319.0,0.83464246]
[1664603477406,0.2974152,19321.0,19319.0,0.077]
[1664603477407,0.72802961,19320.0,19319.0,0.077]
[1664603477706,0.72802961,19320.0,19316.0,0.025]
[1664603477707,0.04327465,19314.0,19313.0,0.1]
[1664603477933,0.04327465,19314.0,19313.0,0.61173144]
[1664603478173,0.56297941,19314.0,19313.0,0.61673144]
[1664603479045,0.61997941,19314.0,19313.0,0.61673144]
[1664603479272,0.61997941,19314.0,19313.0,0.51673144]
[1664603479482,0.61997941,19314.0,19313.0,0.005]
[1664603480371,0.51970476,19314.0,19313.0,0.005]
[1664603480607,0.16116476,19314.0,19313.0,0.005]
[1664603480837,0.43149,19314.0,19313.0,0.005]
[1664603481071,0.48849,19314.0,19313.0,0.005]
[1664603482865,0.43149,19314.0,19313.0,0.005]
[1664603483098,0.48849,19314.0,19313.0,0.005]
[1664603483532,0.617929,19314.0,19313.0,0.005]
[1664603483770,0.7733031,19314.0,19313.0,0.005]
[1664603484418,0.7163031,19314.0,19313.0,0.005]
[1664603485045,0.7733031,19314.0,19313.0,0.005]
[1664603485264,3.13574974,19314.0,19313.0,0.005]
[1664603485499,4.21608268,19314.0,19313.0,0.005]
[1664603486388,4.15908268,19314.0,19313.0,0.005]
[1664603487232,4.20208268,19314.0,19313.0,0.005]
[1664603487474,0.35854,19313.0,19309.0,0.18025566]
[1664603487696,0.394394,19312.0,19310.0,2.51173144]
[1664603487915,0.035854,19312.0,19310.0,2.0]
[1664603488147,0.035854,19312.0,19311.0,0.005]
[1664603488395,0.596798,19312.0,19311.0,0.005]
[1664603488923,3.04258038,19312.0,19311.0,0.005]
[1664603489150,3.12958038,19312.0,19311.0,0.005]
[1664603489605,3.18257713,19312.0,19311.0,0.005]
[1664603490493,3.45637713,19312.0,19311.0,0.0001]
[1664603491165,3.50737713,19312.0,19311.0,0.0001]
[1664603491398,3.40737713,19312.0,19311.0,0.0001]
[1664603491619,3.35438038,19312.0,19311.0,0.0001]
[1664603491836,3.04358038,19312.0,19311.0,0.0001]
[1664603492317,0.90643543,19312.0,19311.0,0.0001]
[1664603492556,0.85543543,19312.0,19311.0,0.0001]
[1664603493214,0.90043543,19312.0,19311.0,0.0001]
[1664603494172,1.15934143,19312.0,19311.0,0.0001]
[1664603494390,1.71434143,19312.0,19311.0,0.0001]
[1664603495225,1.75934143,19312.0,19307.0,0.18016659]
[1664603495439,0.35854,19310.0,19308.0,2.51173144]
[1664603495653,0.35854,19310.0,19308.0,0.51845679]
[1664603496144,0.35854,19309.0,19308.0,0.51845679]
[1664603496397,0.35854,19310.0,19308.0,0.51173144]
[1664603496592,0.35854,19309.0,19308.0,0.51173144]
[1664603497272,0.41154,19309.0,19308.0,0.51173144]
[1664603498368,0.35854,19309.0,19308.0,0.51173144]
[1664603499008,0.41154,19309.0,19308.0,0.51173144]
[1664603500311,0.35854,19309.0,19308.0,0.51173144]
[1664603501260,0.41154,19309.0,19308.0,0.51173144]
[1664603502333,0.35854,19309.0,19308.0,0.51173144]
[1664603503123,0.41154,19309.0,19308.0,0.51173144]
[1664603504493,0.35854,19309.0,19308.0,0.51173144]
[1664603505291,0.41154,19309.0,19308.0,0.50173144]
[1664603506506,0.35854,19309.0,19308.0,0.50173144]
[1664603507080,0.41154,19309.0,19308.0,0.50173144]
[1664603508502,0.35854,19309.0,19308.0,0.50173144]
[1664603509059,0.647145,19310.0,19308.0,0.50173144]
[1664603509278,0.053,19309.0,19308.0,0.50173144]
[1664603510269,0.41154,19309.0,19308.0,0.50173144]
[1664603510501,0.647149,19310.0,19308.0,0.50173144]
[1664603510718,0.35854,19309.0,19308.0,0.50173144]
[1664603510959,0.64715,19310.0,19308.0,0.50173144]
[1664603511148,0.35854,19309.0,19308.0,0.50173144]
[1664603511416,0.70015,19310.0,19308.0,0.50173144]
[1664603511651,0.35854,19309.0,19308.0,0.50173144]
[1664603511848,0.700149,19310.0,19308.0,0.50173144]
[1664603512063,0.35854,19309.0,19308.0,0.50173144]
[1664603512294,0.77174608,19310.0,19308.0,0.50173144]
[1664603512513,0.35854,19309.0,19308.0,0.50173144]
[1664603513058,0.647149,19310.0,19308.0,0.50173144]
[1664603513281,0.053,19309.0,19308.0,0.50173144]
[1664603513516,0.41154,19309.0,19308.0,0.50173144]
[1664603513732,0.053,19309.0,19308.0,2.56992124]
[1664603513994,0.053,19309.0,19308.0,3.01416124]
[1664603514215,0.053,19309.0,19308.0,3.40260124]
[1664603514432,0.129373,19310.0,19308.0,3.04406124]
[1664603514653,0.129373,19310.0,19309.0,0.51173144]
[1664603514882,0.129373,19310.0,19309.0,0.61845679]
[1664603515074,0.129373,19310.0,19309.0,2.61845679]
[1664603515324,0.186373,19310.0,19309.0,2.51173144]
[1664603516371,0.129373,19310.0,19309.0,2.51173144]
[1664603517085,0.184373,19310.0,19309.0,2.51173144]
[1664603518405,0.129373,19310.0,19309.0,2.51173144]
[1664603519359,0.209373,19310.0,19309.0,2.51173144]
[1664603519561,0.2820854,19310.0,19309.0,2.51173144]
[1664603519797,0.4115514,19310.0,19309.0,2.51173144]
[1664603520021,0.7700914,19310.0,19309.0,2.51173144]
[1664603520225,0.4115514,19310.0,19309.0,2.51173144]
[1664603520534,0.6900914,19310.0,19309.0,2.51173144]
[1664603520765,0.3315514,19310.0,19309.0,2.51173144]
[1664603520965,0.6900914,19310.0,19309.0,2.51173144]
[1664603521177,0.4115514,19310.0,19309.0,2.51173144]
[1664603521399,0.4115514,19310.0,19309.0,2.0]
[1664603521619,1.0290244,19310.0,19309.0,2.0]
[1664603521835,1.6290244,19310.0,19309.0,2.0]
[1664603522288,2.10744842,19310.0,19307.0,0.18016659]
[1664603522512,1.5025992,19309.0,19308.0,2.51173144]
[1664603522788,1.5025992,19309.0,19308.0,0.51173144]
[1664603523221,0.35854,19308.0,19307.0,0.51283144]
[1664603523457,0.95854,19308.0,19307.0,2.51283144]
[1664603523673,0.7855294,19308.0,19307.0,2.51283144]
[1664603523904,0.6,19308.0,19307.0,2.51283144]
[1664603524123,0.6,19308.0,19307.0,2.0011]
[1664603524382,0.95854,19308.0,19307.0,2.0011]
[1664603524599,0.35854,19308.0,19307.0,2.0011]
[1664603525260,0.99754,19308.0,19307.0,2.0011]
[1664603525481,0.39754,19308.0,19307.0,2.00101718]
[1664603525700,0.5538019,19308.0,19307.0,0.00101718]
[1664603525826,1.1538019,19308.0,19307.0,0.00101718]
[1664603526051,0.5538019,19308.0,19307.0,0.00101718]
[1664603526483,1.1148019,19308.0,19307.0,0.00101718]
[1664603526710,0.5148019,19308.0,19307.0,0.00101718]
[1664603527171,0.5538019,19308.0,19307.0,0.00101718]
[1664603528554,0.5148019,19308.0,19307.0,0.00101718]
[1664603529213,0.5538019,19308.0,19307.0,0.00101718]
[1664603529749,1.1538019,19308.0,19307.0,0.00101718]
[1664603529860,0.5538019,19308.0,19307.0,0.00101718]
[1664603530072,1.1538019,19308.0,19307.0,0.00101718]
[1664603530544,1.1148019,19308.0,19307.0,0.00101718]
[1664603531274,1.1538019,19308.0,19307.0,0.00101718]
[1664603531492,0.5538019,19308.0,19307.0,0.00101718]
[1664603531728,1.1538019,19308.0,19307.0,0.00101718]
[1664603531984,0.5538019,19308.0,19307.0,0.00101718]
[1664603532224,1.1538019,19308.0,19307.0,0.00101718]
[1664603532654,1.1148019,19308.0,19307.0,0.00101718]
[1664603532868,0.5148019,19308.0,19307.0,0.00101718]
[1664603533363,0.5538019,19308.0,19307.0,0.00101718]
[1664603533605,0.039,19308.0,19307.0,0.00101718]
[1664603533803,0.39754,19308.0,19307.0,0.00101718]
[1664603534060,0.39754,19308.0,19307.0,0.86289795]
[1664603534270,0.039,19308.0,19307.0,3.01659862]
[1664603534511,0.129377,19309.0,19307.0,3.04651762]
[1664603534732,0.12937,19310.0,19308.0,0.51173144]
[1664603534950,0.25874,19310.0,19309.0,2.0]
[1664603535175,0.12937,19310.0,19309.0,2.51173144]
[1664603535401,0.17837,19310.0,19309.0,2.51173144]
[1664603536126,0.17837,19310.0,19309.0,1.51173144]
[1664603536684,0.12937,19310.0,19309.0,1.51173144]
[1664603536898,0.12937,19310.0,19309.0,2.51173144]
[1664603537335,0.17637,19310.0,19309.0,2.51173144]
[1664603537512,0.53491,19310.0,19309.0,2.51173144]
[1664603537744,0.17637,19310.0,19309.0,2.51173144]
[1664603538530,0.12937,19310.0,19309.0,2.51173144]
[1664603539316,0.17637,19310.0,19309.0,2.51173144]
[1664603539780,0.53491,19310.0,19309.0,2.51173144]
[1664603539987,0.17637,19310.0,19309.0,2.51173144]
[1664603540218,0.53491,19310.0,19309.0,2.51173144]
[1664603540443,0.48791,19310.0,19309.0,2.51173144]
[1664603540896,0.12937,19310.0,19309.0,2.51173144]
[1664603541197,0.48791,19310.0,19309.0,2.51173144]
[1664603541329,0.17637,19310.0,19309.0,2.51173144]
[1664603541550,0.53491,19310.0,19309.0,2.51173144]
[1664603541784,0.17637,19310.0,19309.0,2.51173144]
[1664603541998,0.53491,19310.0,19309.0,2.51173144]
[1664603542442,0.48791,19310.0,19309.0,2.51173144]
[1664603543110,0.12937,19310.0,19309.0,2.51173144]
[1664603543331,0.53491,19310.0,19309.0,2.51173144]
[1664603543859,0.2557436,19310.0,19309.0,2.51173144]
[1664603544010,0.53491,19310.0,19309.0,2.51173144]
[1664603544682,0.258836,19310.0,19309.0,2.0]
[1664603544891,0.876309,19310.0,19309.0,2.0]
[1664603545370,0.923309,19310.0,19309.0,2.0]
[1664603545645,1.10162895,19310.0,19309.0,2.0]
[1664603546584,1.05462895,19310.0,19309.0,2.0]
[1664603547316,1.10162895,19310.0,19309.0,2.0]
[1664603548547,0.876309,19310.0,19309.0,2.0]
[1664603548776,0.258836,19310.0,19309.0,2.0]
[1664603548989,0.617376,19310.0,19309.0,2.0]
[1664603549441,0.664376,19310.0,19309.0,2.0]
[1664603549674,0.53491,19310.0,19309.0,2.0]
[1664603549888,0.17637,19310.0,19309.0,2.0]
[1664603550718,0.48791,19310.0,19309.0,2.0]
[1664603551416,0.54091,19310.0,19309.0,2.0]
[1664603552753,0.48791,19310.0,19309.0,2.0]
[1664603553089,0.12937,19310.0,19309.0,2.0]
[1664603553328,0.48791,19310.0,19309.0,2.0]
[1664603553521,0.54091,19310.0,19309.0,2.0]
[1664603554644,0.48791,19310.0,19309.0,2.0]
[1664603555000,0.57090505,19310.0,19309.0,2.0]
[1664603555444,0.62390505,19310.0,19309.0,2.0]
[1664603556968,0.57090505,19310.0,19309.0,2.0]
[1664603557389,0.62390505,19310.0,19309.0,2.0]
[1664603558512,0.54091,19310.0,19309.0,2.0]
[1664603558727,0.48791,19310.0,19309.0,2.0]
[1664603559459,0.54091,19310.0,19309.0,2.0]
[1664603559690,0.54091,19310.0,19308.0,0.22503163]
[1664603559840,0.35854,19309.0,19308.0,0.73676307]
[1664603560064,0.31174,19310.0,19309.0,2.0]
[1664603560438,0.67028,19310.0,19308.0,0.73676307]
[1664603560650,0.35854,19309.0,19308.0,0.73676307]
[1664603560868,0.25874,19310.0,19309.0,2.0]
[1664603560998,0.61728,19310.0,19308.0,0.73676307]
[1664603561386,0.35854,19309.0,19308.0,0.72676307]
[1664603561753,0.67028,19310.0,19309.0,2.0]
[1664603561962,0.67028,19310.0,19308.0,0.72676307]
[1664603562173,0.31174,19310.0,19308.0,0.72676307]
[1664603562445,0.35854,19309.0,19308.0,0.72676307]
[1664603562707,0.25874,19310.0,19308.0,0.72676307]
[1664603562915,0.61728,19310.0,19309.0,2.0]
[1664603563146,0.61728,19310.0,19308.0,0.72676307]
[1664603563362,0.35854,19309.0,19308.0,0.72676307]
[1664603563684,0.79511405,19310.0,19309.0,2.0]
[1664603563899,0.79511405,19310.0,19308.0,0.72676307]
[1664603564283,0.43657405,19310.0,19309.0,2.0]
[1664603564456,0.79511405,19310.0,19308.0,0.72676307]
[1664603564675,0.35854,19309.0,19308.0,0.72676307]
[1664603564885,0.38057405,19310.0,19309.0,2.0]
[1664603565101,0.73911405,19310.0,19308.0,0.72676307]
[1664603565315,0.31174,19310.0,19309.0,2.0]
[1664603565528,0.31174,19310.0,19309.0,0.05]
[1664603565963,0.67028,19310.0,19309.0,0.05]
[1664603566176,0.67028,19310.0,19308.0,0.98575007]
[1664603566384,0.67028,19310.0,19309.0,2.0]
[1664603566385,0.31174,19310.0,19309.0,2.0]
[1664603566604,0.25874,19310.0,19308.0,0.98575007]
[1664603566834,0.35854,19309.0,19308.0,0.98575007]
[1664603567047,0.25874,19310.0,19308.0,0.98575007]
[1664603567269,0.25874,19310.0,19309.0,0.35854]
[1664603567470,0.25874,19310.0,19308.0,0.98575007]
[1664603567719,0.35854,19309.0,19308.0,0.98575007]
[1664603568077,0.25874,19310.0,19309.0,2.0]
[1664603568309,0.359259,19315.0,19312.0,0.1]
[1664603568570,0.0401554,19316.0,19314.0,1.09262535]
[1664603568801,0.1694784,19318.0,19315.0,1.55568891]
[1664603569058,0.129323,19318.0,19317.0,0.10672535]
[1664603569519,0.079,19318.0,19317.0,3.04395747]
[1664603569743,0.079,19318.0,19317.0,2.68541747]
[1664603569971,0.079,19318.0,19317.0,2.48057814]
[1664603570874,0.1694634,19320.0,19317.0,2.83911814]
[1664603571089,0.1694634,19320.0,19317.0,2.68541747]
[1664603571487,0.1694634,19320.0,19317.0,2.48057814]
[1664603571705,0.2264634,19320.0,19317.0,2.48057814]
[1664603572160,0.186308,19320.0,19317.0,2.48057814]
[1664603572922,0.186308,19320.0,19317.0,2.0]
[1664603572923,0.129308,19320.0,19317.0,2.0]
[1664603573138,0.35854,19319.0,19317.0,2.0]
[1664603573313,0.129313,19319.0,19317.0,2.48057814]
[1664603573532,0.129313,19319.0,19318.0,0.10672535]
[1664603573734,0.35854,19319.0,19318.0,0.10672535]
[1664603574755,0.258611,19320.0,19316.0,1.77860002]
[1664603574971,0.258611,19320.0,19317.0,2.0]
[1664603575184,0.258611,19320.0,19319.0,0.10672535]
[1664603575397,0.696151,19320.0,19316.0,1.80975332]
[1664603575608,0.337611,19320.0,19317.0,2.0]
[1664603576508,0.337611,19320.0,19317.0,2.48057814]
[1664603576965,0.258611,19320.0,19317.0,2.0]
[1664603577427,0.129308,19320.0,19319.0,0.10672535]
[1664603577657,0.566848,19320.0,19319.0,0.10672535]
[1664603577882,0.566848,19320.0,19317.0,0.73944414]
[1664603578166,0.35854,19319.0,19318.0,2.0]
[1664603578393,0.208308,19320.0,19317.0,0.258866]
[1664603578623,0.079,19320.0,19319.0,0.10672535]
[1664603578859,0.129303,19321.0,19319.0,0.51173144]
[1664603579079,0.35854,19320.0,19319.0,0.51173144]
[1664603579549,0.191303,19321.0,19319.0,0.51173144]
[1664603579984,0.35854,19320.0,19319.0,0.51173144]
[1664603580233,0.191303,19321.0,19319.0,0.51173144]
[1664603580913,0.129303,19321.0,19319.0,0.51173144]
[1664603581577,0.175303,19321.0,19319.0,0.51173144]
[1664603581873,0.35854,19320.0,19319.0,0.51173144]
[1664603582100,0.175303,19321.0,19319.0,0.51173144]
[1664603582312,0.175303,19321.0,19320.0,0.10672535]
[1664603582528,0.533843,19321.0,19320.0,0.10672535]
[1664603582742,0.129303,19321.0,19319.0,0.51173144]
[1664603582970,0.129303,19321.0,19320.0,2.0]
[1664603583193,0.129303,19321.0,19319.0,0.51173144]
[1664603583418,0.129303,19321.0,19320.0,1.0]
[1664603583677,0.172303,19321.0,19320.0,1.0]
[1664603583903,0.172303,19321.0,19319.0,0.51173144]
[1664603584120,0.172303,19321.0,19320.0,1.35854]
[1664603584390,0.172303,19321.0,19319.0,0.51173144]
[1664603584603,0.172303,19321.0,19320.0,2.10672535]
[1664603584813,0.129303,19321.0,19320.0,0.10672535]
[1664603585039,0.487843,19321.0,19319.0,0.51173144]
[1664603585264,0.487843,19321.0,19320.0,2.10672535]
[1664603585265,0.129303,19321.0,19320.0,2.10672535]
[1664603585484,0.172303,19321.0,19320.0,0.10672535]
[1664603585694,0.530843,19321.0,19320.0,0.10672535]
[1664603586859,0.487843,19321.0,19320.0,0.10672535]
[1664603587543,0.530843,19321.0,19320.0,0.10672535]
[1664603587968,0.530843,19321.0,19319.0,0.51173144]
[1664603588229,0.172303,19321.0,19320.0,2.0]
[1664603588450,0.172303,19321.0,19319.0,0.51173144]
[1664603588671,0.172303,19321.0,19320.0,2.10672535]
[1664603588880,0.129303,19321.0,19320.0,0.10672535]
[1664603589102,0.487843,19321.0,19320.0,0.10672535]
[1664603589645,0.530843,19321.0,19320.0,0.10672535]
[1664603589872,0.61908371,19321.0,19316.0,0.216555]
[1664603590098,0.35854,19320.0,19317.0,2.51173144]
[1664603590326,0.43022088,19320.0,19317.0,0.5116258]
[1664603591290,0.55953488,19320.0,19317.0,0.5116258]
[1664603591754,0.63853488,19320.0,19317.0,0.5116258]
[1664603592551,0.58545058,19320.0,19317.0,0.5116258]
[1664603592997,0.50645058,19320.0,19317.0,0.99220394]
[1664603593461,0.50645058,19320.0,19317.0,0.5116258]
[1664603593681,0.58545058,19320.0,19317.0,0.5116258]
[1664603594130,0.58545058,19320.0,19317.0,0.99220394]
[1664603594352,0.74221361,19318.0,19315.0,0.01]
[1664603594600,0.40181465,19316.0,19315.0,0.01]
[1664603595569,0.47081465,19316.0,19315.0,0.01]
[1664603596237,0.42754,19316.0,19315.0,0.01]
[1664603596902,0.35854,19316.0,19315.0,0.01]
[1664603597125,0.448894,19316.0,19315.0,0.01]
[1664603597444,1.048894,19316.0,19315.0,0.01]
[1664603597599,0.517894,19316.0,19315.0,0.01]
[1664603598967,1.048894,19316.0,19315.0,0.01]
[1664603599518,1.117894,19316.0,19315.0,0.01]
[1664603600435,1.60378351,19316.0,19315.0,0.01]
[1664603600890,1.89332351,19316.0,19315.0,0.01]
[1664603601778,1.93232351,19316.0,19315.0,0.01]
[1664603601997,1.83232351,19316.0,19315.0,0.01]
[1664603602924,1.79332351,19316.0,19315.0,0.01]
[1664603603774,1.83232351,19316.0,19315.0,0.01]
[1664603604229,1.23232351,19316.0,19315.0,0.01]
[1664603604961,1.19332351,19316.0,19315.0,0.01]
[1664603605620,1.83232351,19316.0,19315.0,0.01]
[1664603607025,1.79332351,19316.0,19315.0,0.01]
[1664603607657,1.83232351,19316.0,19315.0,0.01]
[1664603609094,1.79332351,19316.0,19315.0,0.01]
[1664603609769,1.83232351,19316.0,19315.0,0.01]
[1664603610909,1.79332351,19316.0,19315.0,0.01]
[1664603611637,1.79332351,19316.0,19315.0,0.00992405]
[1664603611851,1.47378351,19316.0,19315.0,0.00992405]
[1664603612077,1.83232351,19316.0,19315.0,0.00992405]
[1664603612990,1.79332351,19316.0,19315.0,0.00992405]
[1664603613870,1.83232351,19316.0,19315.0,0.00992405]
[1664603614552,2.49704043,19316.0,19315.0,0.00992405]
[1664603614783,2.53719583,19316.0,19315.0,0.00992405]
[1664603615034,2.53719583,19316.0,19309.0,0.77037814]
[1664603615035,0.00655297,19314.0,19309.0,0.77037814]
[1664603615248,0.35854,19313.0,19310.0,2.51173144]
[1664603615505,0.6,19312.0,19310.0,2.51845679]
[1664603615729,0.66,19312.0,19310.0,2.0]
[1664603615944,0.66,19312.0,19308.0,1.4504]
[1664603616175,0.66,19312.0,19309.0,2.35854]
[1664603616441,0.66,19312.0,19308.0,1.96213144]
[1664603616658,0.06,19312.0,19309.0,2.0]
[1664603616877,0.06,19312.0,19308.0,1.96213144]
[1664603617116,0.06,19312.0,19309.0,2.0]
[1664603617260,0.06,19312.0,19308.0,1.96213144]
[1664603617476,0.06,19312.0,19309.0,2.0]
[1664603617682,0.106,19312.0,19308.0,1.96213144]
[1664603617916,0.106,19312.0,19309.0,2.0]
[1664603618162,0.106,19312.0,19308.0,1.96213144]
[1664603618340,0.106,19312.0,19309.0,2.0]
[1664603618560,0.106,19312.0,19308.0,2.44270958]
[1664603618561,0.106,19312.0,19308.0,1.96213144]
[1664603618792,0.106,19312.0,19309.0,2.0]
[1664603618970,0.06,19312.0,19308.0,1.96213144]
[1664603619177,0.35854,19311.0,19309.0,2.0]
[1664603619472,0.06,19312.0,19308.0,1.96213144]
[1664603619705,0.40354,19311.0,19309.0,2.0]
[1664603619923,0.045,19311.0,19308.0,2.16697077]
[1664603620240,0.40354,19311.0,19309.0,2.0]
[1664603620433,0.045,19311.0,19310.0,0.35854]
[1664603620701,0.045,19311.0,19309.0,0.35854]
[1664603620912,0.72936,19313.0,19308.0,3.06697077]
[1664603621136,0.72936,19313.0,19309.0,2.0]
[1664603621137,0.35854,19312.0,19309.0,2.0]
[1664603621314,0.35854,19312.0,19308.0,3.06697077]
[1664603621496,0.35854,19312.0,19309.0,2.0]
[1664603621717,0.35854,19311.0,19308.0,2.86213144]
[1664603621932,0.028225,19310.0,19309.0,2.0]
[1664603622148,0.045,19312.0,19308.0,1.49753144]
[1664603622359,0.40354,19312.0,19309.0,2.0]
[1664603622689,0.045,19312.0,19308.0,1.70237077]
[1664603622912,0.045,19312.0,19309.0,2.0]
[1664603623109,0.35854,19311.0,19308.0,1.70237077]
[1664603623325,0.92886148,19313.0,19309.0,1.0]
[1664603623554,0.35854,19312.0,19309.0,0.20483933]
[1664603623780,0.046,19311.0,19308.0,1.49753144]
[1664603624039,0.046,19311.0,19309.0,2.0]
[1664603624248,0.046,19311.0,19309.0,1.0]
[1664603624487,0.046,19311.0,19308.0,1.49753144]
[1664603624709,0.046,19311.0,19309.0,2.0]
[1664603624918,0.046,19311.0,19308.0,1.49753144]
[1664603625138,0.92886148,19313.0,19309.0,2.0]
[1664603625319,0.072936,19312.0,19309.0,0.00672535]
[1664603625667,0.35854,19311.0,19308.0,1.49753144]
[1664603625882,0.072936,19312.0,19309.0,2.0]
[1664603626205,0.35854,19311.0,19308.0,1.49753144]
[1664603626385,0.388207,19311.0,19309.0,1.0]
[1664603626610,0.35854,19310.0,19309.0,0.00672535]
[1664603626912,0.590751,19312.0,19308.0,1.49753144]
[1664603627139,0.388382,19311.0,19309.0,2.0]
[1664603627486,0.388382,19311.0,19308.0,1.70237077]
[1664603627608,0.388382,19311.0,19309.0,2.0]
[1664603627840,0.433382,19311.0,19308.0,1.49753144]
[1664603628051,0.258758,19310.0,19309.0,2.0]
[1664603628291,0.258758,19310.0,19308.0,1.49753144]
[1664603628544,0.258758,19310.0,19309.0,2.0]
[1664603628681,0.258758,19310.0,19308.0,1.49753144]
[1664603628894,0.258758,19310.0,19309.0,2.0]
[1664603629175,0.258758,19310.0,19308.0,1.49753144]
[1664603629390,0.258758,19310.0,19309.0,2.0]
[1664603629634,0.258758,19310.0,19308.0,1.49753144]
[1664603629856,0.303758,19310.0,19309.0,2.0]
[1664603630086,0.303758,19310.0,19308.0,1.49753144]
[1664603630300,0.303758,19310.0,19309.0,2.0]
[1664603630519,0.303758,19310.0,19308.0,1.49753144]
[1664603630737,0.303758,19310.0,19309.0,2.0]
[1664603630970,0.303758,19310.0,19308.0,1.49753144]
[1664603631082,0.258758,19310.0,19309.0,2.10672535]
[1664603631309,0.258758,19310.0,19309.0,0.10672535]
[1664603631565,0.258758,19310.0,19308.0,1.49753144]
[1664603631773,0.302758,19310.0,19309.0,2.0]
[1664603632001,0.432224,19310.0,19308.0,1.49753144]
[1664603632214,0.35854,19309.0,19308.0,1.49753144]
[1664603632433,0.432224,19310.0,19308.0,3.49753144]
[1664603632887,0.388224,19310.0,19308.0,3.49753144]
[1664603633102,0.388224,19310.0,19309.0,0.10672535]
[1664603633570,0.388224,19310.0,19308.0,1.49753144]
[1664603633800,0.432224,19310.0,19309.0,2.0]
[1664603634098,0.432224,19310.0,19308.0,1.49753144]
[1664603634331,0.432224,19310.0,19309.0,2.0]
[1664603634702,0.432224,19310.0,19308.0,1.49753144]
[1664603634921,0.432224,19310.0,19309.0,2.0]
[1664603635424,0.388224,19310.0,19308.0,1.49753144]
[1664603635652,0.388224,19310.0,19309.0,2.0]
[1664603635874,0.388224,19310.0,19308.0,1.50425679]
[1664603635875,0.429224,19310.0,19308.0,1.49753144]
[1664603636090,0.429224,19310.0,19309.0,2.0]
[1664603636331,1.029224,19310.0,19308.0,1.49753144]
[1664603636557,0.429224,19310.0,19308.0,1.50425679]
[1664603636775,0.429224,19310.0,19309.0,2.0]
[1664603636997,0.388224,19310.0,19308.0,1.49753144]
[1664603637253,0.388224,19310.0,19309.0,2.0]